[Event "Oslo Chess Festival 2017"]
[Site "Oslo"]
[Date "2017.10.04"]
[Round "7"]
[White "Haug, Johannes"]
[Black "Zhao, Shengxin"]
[Result "1-0"]
[ECO "B52"]
[WhiteElo "2379"]
[BlackElo "2113"]
[Annotator "NA"]
[PlyCount "57"]
[EventDate "2017.??.??"]
[EventType "swiss"]
[EventCountry "NOR"]
[SourceTitle "playchess.com"]
[Source "ChessBase"]
[SourceQuality "1"]
[TimeControl "5400+30"]

1. e4 {[%emt 0:00:41]} c5 {[%emt 0:01:43]} 2. Nf3 {[%emt 0:00:09]} d6 {[%emt 0:00:02]} 3. Bb5+ {[%emt 0:00:06]} Bd7 {[%emt 0:03:34]} 4. Bxd7+ {[%emt 0:00:20]} Qxd7 {[%emt 0:00:03]} 5. d4 {[%emt 0:00:17]} cxd4 {[%emt 0:00:22]} 6. Qxd4 {[%emt 0:00:06]} Nc6 {[%emt 0:00:57]} 7. Qd3 {[%emt 0:00:07]} e5 {[%emt 0:07:10]} 8. O-O {[%emt 0:01:47]} Be7 {[%emt 0:04:14]} 9. Rd1 {[%emt 0:02:19]} h6 {[%emt 0:00:43]} 10. b3 {[%emt 0:11:40]} Nf6 {[%emt 0:05:02]} 11. c4 {[%emt 0:00:33]} O-O {[%emt 0:00:48]} 12. Nc3 {[%emt 0:00:53]} Qe6 {[%emt 0:05:03]} 13. Nd5 {[%emt 0:10:52]} Rad8 {[%emt 0:08:43]} 14. Ba3 {[%emt 0:06:36]} Ne8 $16 {[%emt 0:03:58]} 15. c5 dxc5 {[%emt 0:02:04]} 16. Qb5 {[%emt 0:08:25]} Bd6 {[%emt 0:03:30]} 17. Bxc5 {[%emt 0:16:11]} Bxc5 {[%emt 0:10:53]} 18. Qxc5 {[%emt 0:00:13]} Nd6 {[%emt 0:00:44]} 19. Nc3 {[%emt 0:01:15]} Rd7 {[%emt 0:01:55]} 20. Rd2 {[%emt 0:12:19]} Rfd8 {[%emt 0:03:34]} 21. Rad1 {[%emt 0:01:47]} f6 {[%emt 0:03:35]} 22. h3 {[%emt 0:01:17]} Ne8 {[%emt 0:03:31]} 23. Nd5 {[%emt 0:01:25]} Nd6 {[%emt 0:00:31]} 24. Nc3 {[%emt 0:00:45]} Ne8 {[%emt 0:00:38]} 25. Nd5 {[%emt 0:01:08]} Nd6 {[%emt 0:00:23]} 26. Qc2 {[%emt 0:03:05]} Nb5 {[%emt 0:01:50]} 27. Qc4 {[%emt 0:00:54]} Nbd4 {[%emt 0:05:31]} 28. Nxd4 {[%emt 0:01:02]} Nxd4 {[%emt 0:00:22]} 29. Nxf6+ {[%emt 0:00:47]} 1-0

[Event "Oslo Chess Festival 2017"]
[Site "Oslo"]
[Date "2017.10.04"]
[Round "7"]
[White "Mikalsen, Erlend"]
[Black "Bruaset, Eivind"]
[Result "1-0"]
[ECO "C18"]
[WhiteElo "2322"]
[BlackElo "2012"]
[Annotator "NA"]
[PlyCount "85"]
[EventDate "2017.??.??"]
[EventType "swiss"]
[EventCountry "NOR"]
[SourceTitle "playchess.com"]
[Source "ChessBase"]
[SourceQuality "1"]
[TimeControl "5400+30"]

1. e4 {[%emt 0:00:00]} e6 {[%emt 0:00:06]} 2. d4 {[%emt 0:00:03]} d5 {[%emt 0:00:04]} 3. Nc3 {[%emt 0:00:03]} Bb4 {[%emt 0:00:06]} 4. e5 {[%emt 0:00:03]} c5 {[%emt 0:00:07]} 5. a3 {[%emt 0:00:02]} Bxc3+ {[%emt 0:00:06]} 6. bxc3 {[%emt 0:00:03]} Qa5 {[%emt 0:00:08]} 7. Bd2 {[%emt 0:00:04]} Qa4 {[%emt 0:00:04]} 8. Qg4 {[%emt 0:00:03]} Kf8 {[%emt 0:00:09]} 9. Nf3 {[%emt 0:00:03]} Ne7 {[%emt 0:00:38]} 10. Be2 {[%emt 0:00:33] C18: French: 3 Nc3 Bb4: Main line: 7 h4 and 7 Qg4} (10. h3 Nd7 11. Bd3 c4 12. Be2 Qxc2 13. O-O h6 14. Rfe1 Qe4 15. Qxe4 dxe4 16. Nh2 Nb6 17. a4 Bd7 {1-0 (60) Motylev,A (2660)-Kovalenko,I (2667) Poikovsky 2016}) 10... b6 {[%emt 0:00:29]} 11. O-O {[%emt 0:19:51]} Ba6 {[%emt 0:01:52]} 12. Bd3 {[%emt 0:05:36]} Bxd3 {[%emt 0:01:16]} 13. cxd3 {[%emt 0:00:04]} c4 {[%emt 0:00:09]} 14. dxc4 $146 {[%emt 0:01:04]} ({Predecessor:} 14. Ng5 h6 15. Qh5 g6 16. Qh4 Nd7 17. Nf3 Nf5 {0-1 (62) Ferreira,J (2317)-Sandstroem,L (2345) ICCF email 2013}) 14... Qxc4 {[%emt 0:00:08]} 15. Qh5 {[%emt 0:17:24]} h6 {[%emt 0:35:08]} 16. Ng5 {[%emt 0:12:41]} g6 {[%emt 0:01:00]} 17. Qh4 {[%emt 0:00:02]} Nd7 {[%emt 0:07:53]} 18. Nf3 {[%emt 0:01:22]} Nf5 {[%emt 0:00:54]} 19. Qh3 {[%emt 0:00:16]} Kg7 {[%emt 0:01:50]} 20. g4 {[%emt 0:00:26]} Ne7 {[%emt 0:00:41]} 21. Qg3 {[%emt 0:00:20]} Rag8 {[%emt 0:09:28]} 22. Nh4 {[%emt 0:01:33]} Kf8 {[%emt 0:01:42]} 23. Ng2 {[%emt 0:00:22]} h5 {[%emt 0:12:05]} 24. h3 {[%emt 0:00:12]} hxg4 {[%emt 0:01:05]} 25. hxg4 {[%emt 0:00:07]} Rh7 {[%emt 0:01:01]} 26. Bg5 {[%emt 0:02:48]} Ke8 {[%emt 0:24:18]} 27. Nh4 {[%emt 0:09:31]} b5 {[%emt 0:07:48]} 28. Kg2 {[%emt 0:02:03]} Qe2 $16 {[%emt 0:06:01]} (28... Nc6 $11 {remains equal.}) 29. Rfe1 {[%emt 0:01:39]} Qc2 {[%emt 0:00:57]} 30. Rac1 {[%emt 0:00:24]} Qa4 {[%emt 0:01:04]} 31. Rh1 {[%emt 0:00:08]} Rgh8 {[%emt 0:01:06]} 32. Bf6 {[%emt 0:01:48]} Nxf6 {[%emt 0:04:58]} 33. exf6 {[%emt 0:00:04]} Nc8 {[%emt 0:00:08]} 34. Nf3 {[%emt 0:04:29]} Rxh1 {[%emt 0:03:12]} 35. Rxh1 {[%emt 0:01:27]} Rxh1 {[%emt 0:00:02]} 36. Kxh1 {[%emt 0:00:06]} Qc4 {[%emt 0:03:43]} 37. Kg2 {[%emt 0:06:38]} Qc6 {[%emt 0:02:06]} 38. Qb8 {[%emt 0:03:08]} Kd8 {[%emt 0:00:36]} 39. Ne5 {[%emt 0:00:08]} Qe8 {[%emt 0:00:02]} 40. g5 {[%emt 0:00:44]} a6 {[%emt 0:01:26]} 41. Qb7 {[%emt 0:00:27]} Nd6 {[%emt 0:01:18]} 42. Qb6+ {[%emt 0:00:17]} Kc8 {[%emt 0:00:05]} 43. Qxd6 {[%emt 0:00:06]} 1-0

[Event "Oslo Chess Festival 2017"]
[Site "Oslo"]
[Date "2017.10.04"]
[Round "7"]
[White "Gabrielsen, Stig"]
[Black "Vitenberg, Noam Aviv"]
[Result "1-0"]
[ECO "C10"]
[WhiteElo "2314"]
[BlackElo "1989"]
[Annotator "NA"]
[PlyCount "81"]
[EventDate "2017.??.??"]
[EventType "swiss"]
[EventCountry "NOR"]
[SourceTitle "playchess.com"]
[Source "ChessBase"]
[SourceQuality "1"]
[TimeControl "5400+30"]

1. e4 {[%emt 0:00:04]} e6 {[%emt 0:00:26]} 2. d4 {[%emt 0:00:17]} d5 {[%emt 0:00:04]} 3. Nc3 {[%emt 0:00:13]} dxe4 {[%emt 0:00:54]} 4. Nxe4 {[%emt 0:00:11]} Bd7 {[%emt 0:00:24]} 5. c4 {[%emt 0:05:08]} Bc6 {[%emt 0:01:33]} 6. Nc3 {[%emt 0:00:10]} b6 {[%emt 0:07:15]} 7. Nf3 {[%emt 0:01:28]} Nd7 {[%emt 0:01:02]} 8. d5 {[%emt 0:09:56]} exd5 {[%emt 0:00:39]} 9. cxd5 {[%emt 0:00:10]} Bb7 {[%emt 0:01:15]} 10. Bb5 {[%emt 0:02:21]} Ngf6 {[%emt 0:02:10]} 11. O-O {[%emt 0:04:12]} Be7 {[%emt 0:00:49]} 12. Nd4 {[%emt 0:27:32]} O-O {[%emt 0:05:47]} 13. Bc6 $16 {[%emt 0:00:11]} Qc8 {[%emt 0:18:17]} 14. Nf5 {[%emt 0:05:43]} Re8 {[%emt 0:01:35]} 15. Re1 {[%emt 0:05:57]} Bf8 {[%emt 0:01:42]} 16. Rxe8 {[%emt 0:00:54]} Nxe8 {[%emt 0:01:20]} 17. Nh6+ {[%emt 0:04:48]} gxh6 {[%emt 0:04:02]} 18. Qg4+ {[%emt 0:00:19]} Kh8 {[%emt 0:02:42]} 19. Bxb7 {[%emt 0:04:26]} Qxb7 {[%emt 0:01:23]} 20. Qxd7 {[%emt 0:00:08]} Nd6 {[%emt 0:09:35]} 21. Bf4 {[%emt 0:00:22]} Qc8 {[%emt 0:10:25]} 22. Qc6 {[%emt 0:01:15]} Qb7 {[%emt 0:01:06]} 23. Be5+ {[%emt 0:16:43]} Kg8 {[%emt 0:04:34]} 24. Qa4 {[%emt 0:08:39]} Bg7 {[%emt 0:12:36]} 25. Qg4 {[%emt 0:01:03]} Ne8 {[%emt 0:00:15]} 26. Re1 {[%emt 0:05:08]} Qc8 {[%emt 0:01:00]} 27. Qf4 {[%emt 0:01:07]} Qd7 {[%emt 0:04:32]} 28. Re3 {[%emt 0:00:28]} Bxe5 {[%emt 0:02:11]} 29. Qxe5 {[%emt 0:01:18]} Ng7 {[%emt 0:02:19]} 30. Rg3 {[%emt 0:02:13]} f5 {[%emt 0:02:57]} 31. h3 {[%emt 0:00:51]} Rf8 {[%emt 0:01:58]} 32. Ne2 {[%emt 0:00:36]} Rf7 {[%emt 0:02:31]} 33. Nf4 {[%emt 0:00:22]} Qd6 {[%emt 0:01:23]} 34. Qe8+ {[%emt 0:01:04]} Qf8 {[%emt 0:01:13]} 35. Qa4 {[%emt 0:00:42]} a5 {[%emt 0:01:31]} 36. Ne6 {[%emt 0:00:44]} Qe7 {[%emt 0:00:36]} 37. Qc6 {[%emt 0:00:22]} Kh8 {[%emt 0:02:31]} 38. Nxg7 {[%emt 0:00:27]} f4 {[%emt 0:02:00]} 39. Rg4 {[%emt 0:00:09]} Qe1+ {[%emt 0:01:05]} 40. Kh2 {[%emt 0:00:07]} Rxg7 {[%emt 0:00:31]} 41. Qa8+ {[%emt 0:00:09]} 1-0

[Event "Oslo Chess Festival 2017"]
[Site "Oslo"]
[Date "2017.10.04"]
[Round "7"]
[White "Hobber, Anders"]
[Black "Lillevold, Frode"]
[Result "1/2-1/2"]
[ECO "D32"]
[WhiteElo "2264"]
[BlackElo "2128"]
[Annotator "NA"]
[PlyCount "28"]
[EventDate "2017.??.??"]
[EventType "swiss"]
[EventCountry "NOR"]
[SourceTitle "playchess.com"]
[Source "ChessBase"]
[SourceQuality "1"]
[TimeControl "5400+30"]

1. e3 {[%emt 0:00:51]} d5 {[%emt 0:01:24]} 2. c4 {[%emt 0:04:09]} e6 {[%emt 0:01:13]} 3. Nf3 {[%emt 0:00:15]} Nf6 {[%emt 0:00:46]} 4. b3 {[%emt 0:00:35]} Be7 {[%emt 0:01:33]} 5. Bb2 {[%emt 0:02:30]} O-O {[%emt 0:00:42]} 6. Nc3 {[%emt 0:02:52]} c5 {[%emt 0:03:36]} 7. cxd5 {[%emt 0:00:59]} exd5 {[%emt 0:00:38]} 8. d4 {[%emt 0:03:56]} Nc6 {[%emt 0:00:59]} 9. Be2 {[%emt 0:03:11]} Be6 {[%emt 0:06:11]} 10. dxc5 {[%emt 0:04:24]} Bxc5 {[%emt 0:02:33]} 11. O-O {[%emt 0:00:09]} a6 {[%emt 0:04:50]} 12. Rc1 {[%emt 0:01:04]} Ba7 {[%emt 0:01:40]} 13. Na4 {[%emt 0:04:31]} Qe7 {[%emt 0:12:21]} 14. Nd4 {[%emt 0:01:33] LiveBook: 8 Games} Qd6 $16 {[%emt 0:12:44]} (14... Bd7 $14) 1/2-1/2

[Event "Oslo Chess Festival 2017"]
[Site "Oslo"]
[Date "2017.10.04"]
[Round "7"]
[White "Vestby-Ellingsen, Mads"]
[Black "Ingebretsen, Jens E"]
[Result "1-0"]
[ECO "A43"]
[WhiteElo "2262"]
[BlackElo "2062"]
[Annotator "NA"]
[PlyCount "80"]
[EventDate "2017.??.??"]
[EventType "swiss"]
[EventCountry "NOR"]
[SourceTitle "playchess.com"]
[Source "ChessBase"]
[SourceQuality "1"]
[TimeControl "5400+30"]

1. d4 {[%emt 0:00:02]} Nf6 {[%emt 0:00:05]} 2. Nc3 {[%emt 0:00:08]} e6 {[%emt 0:01:27]} 3. e4 {[%emt 0:05:47]} c5 {[%emt 0:00:31]} 4. d5 {[%emt 0:03:15]} d6 {[%emt 0:01:01]} 5. Nf3 {[%emt 0:07:53]} g6 {[%emt 0:00:34]} 6. dxe6 {[%emt 0:06:22]} Bxe6 {[%emt 0:02:03]} 7. e5 {[%emt 0:00:15]} dxe5 {[%emt 0:01:49]} 8. Qxd8+ {[%emt 0:06:09]} Kxd8 {[%emt 0:00:18]} 9. Bg5 {[%emt 0:00:41]} Bg7 {[%emt 0:06:37]} 10. O-O-O+ {[%emt 0:40:32]} Ke7 {[%emt 0:03:05]} 11. Nd5+ Bxd5 {[%emt 0:00:21]} 12. Rxd5 {[%emt 0:14:38]} Nbd7 {[%emt 0:01:00]} 13. Bb5 {[%emt 0:01:57]} Rhd8 {[%emt 0:08:09]} 14. Rxd7+ {[%emt 0:17:54]} Rxd7 {[%emt 0:00:10]} 15. Bxd7 {[%emt 0:00:07]} Kxd7 {[%emt 0:00:05]} 16. Nxe5+ {[%emt 0:00:12]} Kc7 {[%emt 0:09:51]} 17. Nxf7 {[%emt 0:03:57]} Nd5 {[%emt 0:02:59]} 18. Rd1 {[%emt 0:02:39]} Rf8 {[%emt 0:07:22]} 19. Nd8 {[%emt 0:05:26]} Rf5 {[%emt 0:01:14]} 20. g4 {[%emt 0:03:41]} Rxf2 {[%emt 0:14:26]} 21. Rxd5 {[%emt 0:00:08]} Rf1+ {[%emt 0:00:18]} 22. Kd2 {[%emt 0:00:10]} Bxb2 {[%emt 0:00:07]} 23. Ke2 {[%emt 0:00:43]} Rh1 {[%emt 0:00:10]} 24. Bf4+ {[%emt 0:00:44]} Kb6 {[%emt 0:00:02]} 25. Rd6+ {[%emt 0:01:38]} Kb5 {[%emt 0:00:09]} 26. Rd1 {[%emt 0:01:10]} Rxd1 {[%emt 0:00:16]} 27. Kxd1 {[%emt 0:00:05]} b6 {[%emt 0:00:17]} 28. Ne6 {[%emt 0:00:19]} Kc4 {[%emt 0:00:51]} 29. Nf8 {[%emt 0:00:23]} Kd5 {[%emt 0:00:06]} 30. Nxh7 {[%emt 0:00:22]} b5 {[%emt 0:00:18]} 31. Nf8 {[%emt 0:00:24]} Ke4 {[%emt 0:00:09]} 32. Nxg6 {[%emt 0:00:52]} a5 {[%emt 0:00:05]} 33. h4 {[%emt 0:01:05]} b4 {[%emt 0:00:05]} 34. h5 {[%emt 0:00:21]} c4 {[%emt 0:00:09]} 35. h6 {[%emt 0:00:37]} a4 {[%emt 0:00:24]} 36. Be5 {[%emt 0:00:57]} a3 {[%emt 0:00:37]} 37. h7 {[%emt 0:00:06]} Bxe5 {[%emt 0:00:30]} 38. Nxe5 {[%emt 0:00:07]} b3 {[%emt 0:00:05]} 39. Nxc4 {[%emt 0:00:40]} b2 {[%emt 0:00:45]} 40. Nd2+ {[%emt 0:00:21]} Kd5 {[%emt 0:00:45]} 1-0

[Event "Oslo Chess Festival 2017"]
[Site "Oslo"]
[Date "2017.10.04"]
[Round "7"]
[White "Louis, Thibault"]
[Black "Kvendseth, Thyra"]
[Result "1-0"]
[ECO "C45"]
[WhiteElo "2207"]
[BlackElo "1788"]
[Annotator "NA"]
[PlyCount "87"]
[EventDate "2017.??.??"]
[EventType "swiss"]
[EventCountry "NOR"]
[SourceTitle "playchess.com"]
[Source "ChessBase"]
[SourceQuality "1"]
[TimeControl "5400+30"]

1. e4 {[%emt 0:00:34]} e5 {[%emt 0:00:11]} 2. Nf3 {[%emt 0:00:05]} Nc6 {[%emt 0:00:06]} 3. d4 {[%emt 0:00:12]} exd4 {[%emt 0:00:07]} 4. Nxd4 {[%emt 0:00:12]} Nf6 {[%emt 0:00:18]} 5. Nxc6 {[%emt 0:01:03]} bxc6 {[%emt 0:00:12]} 6. e5 {[%emt 0:00:06]} Ne4 {[%emt 0:05:29]} 7. Qf3 {[%emt 0:06:04]} Ng5 {[%emt 0:08:27]} 8. Qg3 {[%emt 0:01:30]} Ne6 {[%emt 0:02:26]} 9. Bd3 {[%emt 0:00:18]} d5 {[%emt 0:04:38]} 10. O-O {[%emt 0:01:24]} Bc5 {[%emt 0:04:45]} 11. Nd2 {[%emt 0:03:46]} O-O {[%emt 0:03:37]} 12. Nf3 {[%emt 0:01:14]} f6 {[%emt 0:06:55]} 13. Qh4 $11 {[%emt 0:04:50]} g6 {[%emt 0:26:57]} 14. Bh6 {[%emt 0:09:15]} Ng7 {[%emt 0:03:26]} 15. Rae1 {[%emt 0:04:08]} fxe5 {[%emt 0:03:17]} 16. Bg5 {[%emt 0:00:36]} Qd6 {[%emt 0:01:55]} 17. Nxe5 {[%emt 0:00:26]} Bf5 {[%emt 0:00:52]} 18. Bf4 {[%emt 0:15:38]} Qf6 {[%emt 0:05:45]} 19. Qxf6 {[%emt 0:04:44]} Rxf6 {[%emt 0:00:12]} 20. Bg5 {[%emt 0:00:08]} Re6 {[%emt 0:00:33]} 21. Bxf5 {[%emt 0:00:36]} Nxf5 {[%emt 0:00:16]} 22. Nd7 {[%emt 0:00:31]} Rxe1 {[%emt 0:01:27]} 23. Rxe1 {[%emt 0:00:04]} Bd4 {[%emt 0:07:23]} 24. c3 {[%emt 0:01:20]} Bg7 {[%emt 0:00:50]} 25. Kf1 {[%emt 0:01:45]} Nd6 {[%emt 0:06:07]} 26. f3 {[%emt 0:04:19]} a5 {[%emt 0:05:16]} 27. g4 {[%emt 0:02:53]} Re8 {[%emt 0:00:31]} 28. Rxe8+ {[%emt 0:01:12]} Nxe8 {[%emt 0:00:07]} 29. Nb8 {[%emt 0:00:08]} c5 {[%emt 0:00:25]} 30. Nc6 {[%emt 0:00:25]} d4 {[%emt 0:02:38]} 31. cxd4 {[%emt 0:00:55]} Bxd4 {[%emt 0:00:20]} 32. b3 {[%emt 0:00:43]} Bc3 {[%emt 0:01:22]} 33. Ke2 {[%emt 0:02:19]} Ng7 {[%emt 0:03:54]} 34. Bd2 {[%emt 0:03:18]} Bxd2 {[%emt 0:01:54]} 35. Kxd2 {[%emt 0:00:02]} Ne6 {[%emt 0:03:00]} 36. Kd3 {[%emt 0:02:07]} Kf7 {[%emt 0:01:04]} 37. Nxa5 {[%emt 0:03:52]} Ke7 {[%emt 0:01:05]} 38. h4 {[%emt 0:01:40]} h6 {[%emt 0:03:13]} 39. Ke4 {[%emt 0:00:27]} Kd6 {[%emt 0:00:34]} 40. Nc4+ {[%emt 0:00:12]} Ke7 {[%emt 0:00:19]} 41. f4 {[%emt 0:00:18]} Kf6 {[%emt 0:00:47]} 42. Ne5 {[%emt 0:00:15]} g5 {[%emt 0:01:21]} 43. hxg5+ {[%emt 0:01:11]} hxg5 {[%emt 0:00:06]} 44. f5 {[%emt 0:00:08]} 1-0

[Event "Oslo Chess Festival 2017"]
[Site "Oslo"]
[Date "2017.10.04"]
[Round "7"]
[White "Sousa, Ludy Helsio Paulo"]
[Black "Wetle Hoem, Tor"]
[Result "1-0"]
[ECO "B76"]
[WhiteElo "2171"]
[BlackElo "1965"]
[Annotator "NA"]
[PlyCount "26"]
[EventDate "2017.??.??"]
[EventType "swiss"]
[EventCountry "NOR"]
[SourceTitle "playchess.com"]
[Source "ChessBase"]
[SourceQuality "1"]
[TimeControl "5400+30"]

1. e4 {[%emt 0:00:54]} c5 {[%emt 0:00:09]} 2. Nf3 {[%emt 0:00:21]} d6 {[%emt 0:00:05]} 3. d4 {[%emt 0:00:05]} cxd4 {[%emt 0:00:03]} 4. Nxd4 {[%emt 0:00:05]} Nf6 {[%emt 0:00:03]} 5. Nc3 {[%emt 0:00:09]} g6 {[%emt 0:00:03]} 6. Be3 {[%emt 0:00:11]} Bg7 {[%emt 0:00:04]} 7. f3 {[%emt 0:00:13]} Nc6 {[%emt 0:00:07]} 8. Qd2 {[%emt 0:00:04]} O-O {[%emt 0:00:05]} 9. g4 {[%emt 0:00:24]} Nxd4 {[%emt 0:11:59]} 10. Bxd4 {[%emt 0:00:21]} Be6 {[%emt 0:00:10]} 11. O-O-O {[%emt 0:00:41]} Qa5 {[%emt 0:00:54]} 12. Kb1 {[%emt 0:00:16]} Rfc8 {[%emt 0:16:33]} 13. a3 {[%emt 0:02:00]} Nd7 {[%emt 0:07:45]} 1-0

[Event "Oslo Chess Festival 2017"]
[Site "Oslo"]
[Date "2017.10.04"]
[Round "7"]
[White "Li, Xueyi"]
[Black "Nilsen, Tobias Lang"]
[Result "1-0"]
[ECO "D27"]
[WhiteElo "2157"]
[BlackElo "1855"]
[Annotator "NA"]
[PlyCount "71"]
[EventDate "2017.??.??"]
[EventType "swiss"]
[EventCountry "NOR"]
[SourceTitle "playchess.com"]
[Source "ChessBase"]
[SourceQuality "1"]
[TimeControl "5400+30"]

1. d4 {[%emt 0:00:02]} Nf6 {[%emt 0:00:10]} 2. c4 {[%emt 0:00:08]} e6 {[%emt 0:00:09]} 3. Nc3 {[%emt 0:00:11]} Bb4 {[%emt 0:00:12]} 4. e3 {[%emt 0:00:08]} d5 {[%emt 0:00:21]} 5. Nf3 {[%emt 0:00:56]} c5 {[%emt 0:02:30]} 6. Bd3 {[%emt 0:00:15]} O-O {[%emt 0:01:38]} 7. O-O {[%emt 0:00:08]} cxd4 {[%emt 0:05:12]} 8. exd4 {[%emt 0:00:12]} dxc4 {[%emt 0:06:49]} 9. Bxc4 {[%emt 0:00:05]} a6 {[%emt 0:01:30]} 10. a4 {[%emt 0:00:22]} Nc6 {[%emt 0:00:53]} 11. Bg5 {[%emt 0:00:28]} Be7 {[%emt 0:00:37]} 12. Re1 {[%emt 0:01:25]} Nd5 {[%emt 0:04:09]} 13. Bxd5 {[%emt 0:04:12]} exd5 {[%emt 0:00:34]} 14. Bxe7 {[%emt 0:00:05]} Nxe7 {[%emt 0:00:08]} 15. Qb3 {[%emt 0:00:20]} Rb8 {[%emt 0:05:39]} 16. Re5 {[%emt 0:03:49]} Be6 {[%emt 0:00:42]} 17. Rae1 {[%emt 0:42:35]} Nc6 {[%emt 0:00:31]} 18. Rh5 {[%emt 0:04:15]} g6 {[%emt 0:09:53]} 19. Rh4 {[%emt 0:02:08]} Ne7 {[%emt 0:10:02]} 20. g4 {[%emt 0:08:30]} Qc7 {[%emt 0:05:06]} 21. Ng5 {[%emt 0:01:59]} Qf4 {[%emt 0:03:42]} 22. Nxh7 {[%emt 0:00:56]} g5 {[%emt 0:00:54]} 23. Ne2 {[%emt 0:24:02]} Qd2 {[%emt 0:02:44]} 24. Nf6+ {[%emt 0:00:06]} Kg7 {[%emt 0:00:11]} 25. Nh5+ {[%emt 0:00:06]} Kg6 {[%emt 0:09:33]} 26. Nef4+ {[%emt 0:00:31]} gxf4 {[%emt 0:02:05]} 27. Rd1 {[%emt 0:00:07]} Qa5 {[%emt 0:06:14]} 28. Nxf4+ {[%emt 0:00:45]} Kg7 {[%emt 0:00:59]} 29. Nh5+ {[%emt 0:00:28]} Kg6 {[%emt 0:00:42]} 30. Qd3+ {[%emt 0:01:50]} f5 {[%emt 0:00:13]} 31. Nf4+ {[%emt 0:01:09]} Kf6 {[%emt 0:03:52]} 32. g5+ {[%emt 0:01:33]} Kf7 {[%emt 0:00:42]} 33. Rh7+ {[%emt 0:00:18]} Ke8 {[%emt 0:00:39]} 34. Nxe6 {[%emt 0:00:13]} Rg8 {[%emt 0:00:17]} 35. Qa3 {[%emt 0:00:41]} Nc6 {[%emt 0:01:22]} 36. Nc7+ {[%emt 0:00:18]} 1-0

[Event "Oslo Chess Festival 2017"]
[Site "Oslo"]
[Date "2017.10.04"]
[Round "7"]
[White "Bentsen, Hakon"]
[Black "Kvisvik, Brede"]
[Result "0-1"]
[ECO "C07"]
[WhiteElo "2071"]
[BlackElo "2296"]
[Annotator "NA"]
[PlyCount "78"]
[EventDate "2017.??.??"]
[EventType "swiss"]
[EventCountry "NOR"]
[SourceTitle "playchess.com"]
[Source "ChessBase"]
[SourceQuality "1"]
[TimeControl "5400+30"]

1. e4 {[%emt 0:00:01]} e6 {[%emt 0:00:38]} 2. d4 {[%emt 0:00:15]} d5 {[%emt 0:00:04]} 3. Nd2 {[%emt 0:00:06]} c5 {[%emt 0:00:05]} 4. exd5 {[%emt 0:00:07]} Qxd5 {[%emt 0:00:04]} 5. Ngf3 {[%emt 0:00:07]} cxd4 {[%emt 0:00:13]} 6. Bc4 {[%emt 0:00:07]} Qd6 {[%emt 0:00:03]} 7. O-O {[%emt 0:00:10]} Nf6 {[%emt 0:00:03]} 8. Nb3 {[%emt 0:00:24]} Nc6 {[%emt 0:00:09]} 9. Nbxd4 {[%emt 0:00:08]} Nxd4 {[%emt 0:00:10]} 10. Qxd4 {[%emt 0:00:37]} Qxd4 {[%emt 0:00:08]} 11. Nxd4 {[%emt 0:00:05]} Bc5 {[%emt 0:00:05]} 12. Bb5+ {[%emt 0:02:30]} Bd7 {[%emt 0:08:17]} 13. Bxd7+ {[%emt 0:00:32]} Nxd7 {[%emt 0:00:05]} 14. Be3 {[%emt 0:07:14]} O-O-O {[%emt 0:23:31]} 15. Rfd1 {[%emt 0:03:21]} Nf6 {[%emt 0:36:03]} 16. Nf5 {[%emt 0:01:39]} Bxe3 {[%emt 0:02:06]} 17. Nxe3 {[%emt 0:00:07]} Rxd1+ 18. Rxd1 {[%emt 0:00:07]} Rd8 {[%emt 0:02:11]} 19. Rxd8+ Kxd8 {[%emt 0:00:04]} 20. f3 {[%emt 0:00:27]} Kc7 {[%emt 0:01:13]} 21. Kf2 {[%emt 0:00:11]} Kc6 {[%emt 0:00:30]} 22. Ke2 {[%emt 0:00:32]} Kc5 {[%emt 0:01:11]} 23. Kd3 {[%emt 0:00:24]} b5 {[%emt 0:00:17]} 24. a3 a5 {[%emt 0:01:53]} 25. Kc3 {[%emt 0:06:49]} Nd5+ {[%emt 0:18:50]} 26. Nxd5 {[%emt 0:01:17]} Kxd5 {[%emt 0:00:01]} 27. b4 {[%emt 0:09:27]} a4 {[%emt 0:01:02]} 28. Kd3 {[%emt 0:00:06]} e5 {[%emt 0:01:51]} 29. g4 {[%emt 0:00:13]} f6 {[%emt 0:00:33]} 30. c4+ {[%emt 0:01:39]} bxc4+ {[%emt 0:00:05]} 31. Kc3 {[%emt 0:00:05]} g6 {[%emt 0:00:33]} 32. b5 {[%emt 0:00:17]} Kc5 {[%emt 0:00:06]} 33. b6 {[%emt 0:00:04]} Kxb6 {[%emt 0:00:03]} 34. Kxc4 {[%emt 0:00:05]} Kc6 {[%emt 0:00:16]} 35. h4 {[%emt 0:04:38]} h5 {[%emt 0:02:38]} 36. Kb4 {[%emt 0:03:21]} f5 {[%emt 0:00:13]} 37. gxf5 {[%emt 0:00:28]} gxf5 {[%emt 0:00:05]} 38. Kxa4 {[%emt 0:00:09]} e4 {[%emt 0:00:19]} 39. fxe4 {[%emt 0:00:08]} f4 {[%emt 0:00:04]} 0-1

[Event "Oslo Chess Festival 2017"]
[Site "Oslo"]
[Date "2017.10.04"]
[Round "7"]
[White "Abdrlauf, Elham"]
[Black "Stark, Lars"]
[Result "0-1"]
[ECO "B01"]
[WhiteElo "1990"]
[BlackElo "2397"]
[Annotator "NA"]
[PlyCount "26"]
[EventDate "2017.??.??"]
[EventType "swiss"]
[EventCountry "NOR"]
[SourceTitle "playchess.com"]
[Source "ChessBase"]
[SourceQuality "1"]
[TimeControl "5400+30"]

1. e4 {[%emt 0:00:04]} d5 {[%emt 0:00:05]} 2. exd5 {[%emt 0:00:07]} Qxd5 {[%emt 0:00:07]} 3. Nc3 {[%emt 0:00:02]} Qd6 {[%emt 0:00:06]} 4. d4 {[%emt 0:00:30]} Nf6 {[%emt 0:00:06]} 5. Nf3 {[%emt 0:00:39]} c6 {[%emt 0:00:06]} 6. Bc4 {[%emt 0:00:18]} Bg4 {[%emt 0:03:45]} 7. Be3 {[%emt 0:02:00]} Nbd7 {[%emt 0:03:02]} 8. h3 {[%emt 0:03:28]} Bh5 {[%emt 0:00:57]} 9. Qd2 {[%emt 0:05:13]} Nb6 {[%emt 0:06:51]} 10. Bb3 {[%emt 0:01:02]} e6 {[%emt 0:11:32]} 11. g4 {[%emt 0:00:43]} Bg6 {[%emt 0:00:17]} 12. Bf4 {[%emt 0:02:20]} Qb4 {[%emt 0:03:36]} 13. a3 {[%emt 0:02:43]} Qa5 {[%emt 0:00:09]} 0-1

[Event "Oslo Chess Festival 2017"]
[Site "Oslo"]
[Date "2017.10.04"]
[Round "7"]
[White "Larsen, Ulrik"]
[Black "Vogt, Lothar"]
[Result "0-1"]
[ECO "B86"]
[WhiteElo "1975"]
[BlackElo "2401"]
[Annotator "NA"]
[PlyCount "27"]
[EventDate "2017.??.??"]
[EventType "swiss"]
[EventCountry "NOR"]
[SourceTitle "playchess.com"]
[Source "ChessBase"]
[SourceQuality "1"]
[TimeControl "5400+30"]

1. e4 {[%emt 0:00:09]} c5 {[%emt 0:00:02]} 2. Nf3 {[%emt 0:00:13]} e6 {[%emt 0:01:29]} 3. d4 {[%emt 0:00:33]} cxd4 {[%emt 0:00:02]} 4. Nxd4 {[%emt 0:00:15]} Nf6 {[%emt 0:00:06]} 5. Nc3 {[%emt 0:00:08]} d6 {[%emt 0:00:05]} 6. Bc4 {[%emt 0:00:56]} Be7 {[%emt 0:00:14]} 7. Bb3 {[%emt 0:02:10]} Na6 {[%emt 0:00:09]} 8. f4 {[%emt 0:02:57]} Nc5 {[%emt 0:01:34]} 9. Qf3 {[%emt 0:03:01]} O-O {[%emt 0:00:14]} 10. g4 {[%emt 0:04:02]} d5 {[%emt 0:01:12]} 11. exd5 {[%emt 0:17:22]} Nxb3 {[%emt 0:03:44]} 12. axb3 {[%emt 0:00:40]} Nxd5 {[%emt 0:00:32]} 13. Nxd5 {[%emt 0:09:06]} exd5 {[%emt 0:00:42]} 14. g5 $17 {[%emt 0:02:33]} 0-1